[Event "DFMMLV 2019"]
[Site "Braunfels"]
[Date "2019.06.22"]
[Round "4.15"]
[White "Freter, Anke"]
[Black "Woniak, Katarzyna"]
[Result "0-1"]
[ECO "B06"]
[WhiteElo "1856"]
[BlackElo "1915"]
[Annotator "NA"]
[PlyCount "114"]
[EventDate "2019.06.20"]
[EventType "team-tourn"]
[EventCountry "GER"]
[SourceTitle "playchess.com"]
[Source "ChessBase"]
[SourceQuality "1"]
[WhiteTeam "Schleswig Holstein"]
[BlackTeam "Bayern 1"]
[TimeControl "40/5400+30:1800+30"]

1. e4 {[%emt 0:00:00]} g6 {[%emt 0:00:00]} 2. g3 {[%emt 0:00:35]} Bg7 {[%emt 0:02:00]} 3. Bg2 {[%emt 0:00:44]} d6 {[%emt 0:01:24]} 4. Nc3 {[%emt 0:01:07]} Nf6 {[%emt 0:00:27]} 5. d3 {[%emt 0:00:59]} c6 {[%emt 0:03:46]} 6. f4 {[%emt 0:02:45]} Qb6 {[%emt 0:06:16]} 7. h3 {[%emt 0:10:00]} Nbd7 {[%emt 0:08:40]} 8. g4 {[%emt 0:09:17]} Nf8 {[%emt 0:16:04]} 9. Qf3 {[%emt 0:06:22]} e6 {[%emt 0:01:45]} 10. Nge2 {[%emt 0:02:08]} d5 {[%emt 0:04:01]} 11. e5 {[%emt 0:04:07]} Ng8 {[%emt 0:01:25]} 12. d4 {[%emt 0:02:32]} Ne7 {[%emt 0:04:08]} 13. Nd1 {[%emt 0:04:59]} c5 {[%emt 0:01:20]} 14. dxc5 {[%emt 0:06:59]} Qxc5 {[%emt 0:00:04]} 15. c3 {[%emt 0:00:21]} Bd7 {[%emt 0:00:57]} 16. Be3 {[%emt 0:01:18]} Qa5 {[%emt 0:00:18]} 17. Nd4 {[%emt 0:06:19]} Nc6 {[%emt 0:03:43]} 18. O-O {[%emt 0:03:41]} Nxd4 {[%emt 0:00:46]} 19. Bxd4 {[%emt 0:00:34]} h5 {[%emt 0:03:10]} 20. Ne3 {[%emt 0:02:03]} hxg4 {[%emt 0:04:18]} 21. hxg4 {[%emt 0:00:06]} Bb5 {[%emt 0:01:59]} 22. Rfc1 {[%emt 0:00:44]} Bc6 {[%emt 0:03:53]} 23. f5 {[%emt 0:03:23]} gxf5 {[%emt 0:02:48]} 24. gxf5 {[%emt 0:00:11]} Qd8 {[%emt 0:06:46]} 25. Qg3 {[%emt 0:05:40]} Bh6 {[%emt 0:01:25]} 26. Ng4 {[%emt 0:01:34]} Bg5 {[%emt 0:06:49]} 27. Re1 {[%emt 0:02:47]} Qd7 {[%emt 0:03:02]} 28. b3 {[%emt 0:06:18]} b6 {[%emt 0:04:12]} 29. Qf3 {[%emt 0:03:20]} O-O-O {[%emt 0:01:15]} 30. a4 {[%emt 0:00:11]} Nh7 {[%emt 0:00:41]} 31. Ne3 {[%emt 0:01:34]} Bxe3+ {[%emt 0:00:14]} 32. Qxe3 {[%emt 0:00:16]} Rhg8 {[%emt 0:00:50]} 33. Kf2 {[%emt 0:01:46]} Ng5 {[%emt 0:00:30]} 34. a5 {[%emt 0:00:36]} b5 {[%emt 0:00:50]} 35. Rg1 {[%emt 0:03:35]} Kb8 {[%emt 0:01:46]} 36. Bc5 {[%emt 0:01:56]} exf5 {[%emt 0:01:56]} 37. Bd6+ {[%emt 0:00:19]} Ka8 {[%emt 0:00:39]} 38. Bxd5 {[%emt 0:03:04]} Bxd5 {[%emt 0:01:48]} 39. Rxg5 {[%emt 0:00:06]} Rxg5 {[%emt 0:02:08]} 40. Qxg5 {[%emt 0:00:02]} Bxb3 {[%emt 0:00:44]} 41. a6 {[%emt 0:33:28]} Bd5 {[%emt 0:00:49]} 42. Rb1 {[%emt 0:00:00]} Rc8 {[%emt 0:03:10]} 43. Qd2 {[%emt 0:00:00]} Be4 {[%emt 0:04:40]} 44. Ra1 {[%emt 0:00:00]} Rh8 {[%emt 0:00:25]} 45. Qg5 {[%emt 0:00:00]} Rh2+ {[%emt 0:01:59]} 46. Ke3 {[%emt 0:00:00]} Rh3+ {[%emt 0:02:33]} 47. Kd2 {[%emt 0:00:00]} Rd3+ {[%emt 0:00:33]} 48. Ke2 {[%emt 0:00:00]} Rxc3 {[%emt 0:01:00]} 49. Qg8+ {[%emt 0:00:00]} Rc8 {[%emt 0:00:16]} 50. Rg1 {[%emt 0:00:00]} Qe6 {[%emt 0:08:47]} 51. Rg7 {[%emt 0:00:00]} Qa2+ {[%emt 0:01:39]} 52. Ke3 {[%emt 0:00:00]} Qxa6 {[%emt 0:02:51]} 53. Qxf7 {[%emt 0:00:00]} Qb6+ {[%emt 0:01:38]} 54. Kf4 {[%emt 0:00:00]} Qf2+ {[%emt 0:01:42]} 55. Kg5 {[%emt 0:00:00]} Qg3+ {[%emt 0:00:59]} 56. Kf6 {[%emt 0:02:40]} Qh4+ {[%emt 0:00:27]} 57. Ke6 {[%emt 0:00:22]} Bd5+ {[%emt 0:00:54]} 0-1

[Event "DFMMLV 2019"]
[Site "Braunfels"]
[Date "2019.06.22"]
[Round "4.16"]
[White "Spiel, Marianne"]
[Black "Braeutigam, Katerina"]
[Result "1/2-1/2"]
[ECO "B10"]
[WhiteElo "1894"]
[BlackElo "1697"]
[Annotator "NA"]
[PlyCount "174"]
[EventDate "2019.06.20"]
[EventType "team-tourn"]
[EventCountry "GER"]
[SourceTitle "playchess.com"]
[Source "ChessBase"]
[SourceQuality "1"]
[WhiteTeam "Bayern 1"]
[BlackTeam "Schleswig Holstein"]
[TimeControl "40/5400+30:1800+30"]

1. e4 c6 2. c4 {[%emt 0:00:16]} d5 {[%emt 0:00:05]} 3. exd5 {[%emt 0:00:05]} cxd5 {[%emt 0:00:11]} 4. cxd5 {[%emt 0:00:07]} Nf6 {[%emt 0:00:12]} 5. Bb5+ {[%emt 0:07:08]} Nbd7 {[%emt 0:00:21]} 6. Nc3 {[%emt 0:00:37]} a6 {[%emt 0:00:43]} 7. Ba4 {[%emt 0:05:08]} b5 {[%emt 0:01:09]} 8. Bb3 {[%emt 0:00:55] B10: Caro-Kann: 2 d3 and 2 c4} Nb6 {[%emt 0:00:44]} (8... Bb7 9. Nf3 b4 10. Na4 Bxd5 11. O-O e6 12. d4 Be7 13. Bg5 Qa5 14. Rc1 O-O 15. Bxf6 Bxf6 16. Bxd5 Qxd5 17. Qb3 {½-½ (17) Foygel,I (2474)-Stripunsky,A (2554) Seattle 2003}) 9. Nf3 {[%emt 0:01:15]} Nfxd5 {[%emt 0:02:10]} 10. O-O {[%emt 0:00:45]} e6 {[%emt 0:01:18]} 11. d4 {[%emt 0:03:10]} Nxc3 $146 {[%emt 0:11:46]} ({Predecessor:} 11... Be7 12. a3 Bb7 13. Qd3 b4 14. Nxd5 Bxd5 15. axb4 Bxf3 16. Qxf3 {1-0 (29) Kutschke,P (1993)-Hornych,C (1971) Mecklenburg VP 2002}) 12. bxc3 {[%emt 0:00:30]} Bb7 {[%emt 0:00:25]} 13. Qe2 {[%emt 0:08:00]} Qc8 {[%emt 0:05:13]} 14. Ne5 {[%emt 0:15:25]} Bd6 {[%emt 0:10:02]} 15. f4 {[%emt 0:09:46]} O-O {[%emt 0:02:53]} 16. Bb2 {[%emt 0:04:18]} Nd5 {[%emt 0:22:08]} 17. Rac1 {[%emt 0:03:30]} Re8 {[%emt 0:04:17]} 18. c4 {[%emt 0:08:41]} bxc4 {[%emt 0:01:04]} 19. Bxc4 {[%emt 0:04:56]} Qd8 {[%emt 0:02:12]} 20. Bd3 {[%emt 0:08:22]} Nf6 {[%emt 0:19:01]} 21. g3 {[%emt 0:01:36]} Qb6 {[%emt 0:08:04]} 22. Nc4 {[%emt 0:01:29]} Qd8 {[%emt 0:00:47]} 23. Nxd6 {[%emt 0:00:14]} Qxd6 {[%emt 0:00:10]} 24. h3 {[%emt 0:00:19]} Qd5 {[%emt 0:01:18]} 25. Kh2 {[%emt 0:02:46]} Qxa2 {[%emt 0:02:15]} 26. Ra1 {[%emt 0:00:06]} Qb3 {[%emt 0:00:55]} 27. Rfb1 {[%emt 0:00:25]} a5 {[%emt 0:01:29]} 28. Ra3 {[%emt 0:02:33]} Qd5 {[%emt 0:00:51]} 29. Bc4 {[%emt 0:00:21]} Qd7 {[%emt 0:01:17]} 30. Bc3 {[%emt 0:00:41]} a4 {[%emt 0:00:23]} 31. Ba1 {[%emt 0:01:26]} Bc6 {[%emt 0:00:21]} 32. Bb5 {[%emt 0:01:51]} Bxb5 {[%emt 0:00:32]} 33. Qxb5 {[%emt 0:00:15]} Qxb5 {[%emt 0:00:31]} 34. Rxb5 {[%emt 0:00:01]} Ra7 {[%emt 0:00:15]} 35. Ra2 {[%emt 0:00:33]} Nd5 {[%emt 0:00:18]} 36. Rc5 {[%emt 0:00:42]} Rea8 {[%emt 0:00:13]} 37. Bb2 {[%emt 0:00:58]} Nb4 {[%emt 0:00:39]} 38. Ra3 {[%emt 0:00:46]} h6 {[%emt 0:00:32]} 39. Bc1 {[%emt 0:00:07]} Nd5 {[%emt 0:00:32]} 40. Bd2 {[%emt 0:00:12]} Kf8 {[%emt 0:01:31]} 41. Rc4 {[%emt 0:31:04]} Rb7 {[%emt 0:30:51]} 42. Kg1 {[%emt 0:03:52]} Rb3 {[%emt 0:00:00]} 43. Bc1 {[%emt 0:00:00]} Ke7 {[%emt 0:00:00]} 44. Kf2 {[%emt 0:00:00]} Rb4 {[%emt 0:00:00]} 45. Rc2 {[%emt 0:00:00]} Rxd4 {[%emt 0:00:00]} 46. Bb2 {[%emt 0:00:00]} Rb4 {[%emt 0:00:00]} 47. Bxg7 {[%emt 0:00:00]} f6 {[%emt 0:00:00]} 48. f5 {[%emt 0:00:00]} Rb3 {[%emt 0:00:00]} 49. Rca2 {[%emt 0:00:00]} Nb4 {[%emt 0:00:00]} 50. Rxa4 {[%emt 0:00:00]} Rg8 {[%emt 0:00:00]} 51. Ra7+ {[%emt 0:00:00]} Kd6 {[%emt 0:01:24]} 52. Rd2+ {[%emt 0:00:00]} Ke5 {[%emt 0:00:22]} 53. fxe6 {[%emt 0:00:00]} Kxe6 {[%emt 0:00:18]} 54. Bxh6 {[%emt 0:02:42]} Rgxg3 {[%emt 0:00:21]} 55. Re2+ {[%emt 0:04:32]} Kf5 {[%emt 0:00:16]} 56. Re3 {[%emt 0:00:55]} Rxh3 {[%emt 0:01:12]} 57. Ra5+ {[%emt 0:02:10]} Kg6 {[%emt 0:00:28]} 58. Rxh3 {[%emt 0:01:05]} Rxh3 {[%emt 0:00:08]} 59. Bf8 {[%emt 0:00:06]} Rb3 {[%emt 0:01:25]} 60. Ra4 {[%emt 0:01:04]} Nd3+ {[%emt 0:00:33]} 61. Kg2 {[%emt 0:00:22]} Ne5 {[%emt 0:00:26]} 62. Be7 {[%emt 0:00:27]} Rb7 {[%emt 0:02:22]} 63. Bxf6 {[%emt 0:01:02]} Kxf6 {[%emt 0:00:04]} 64. Kf2 {[%emt 0:00:30]} Rb3 {[%emt 0:00:14]} 65. Ke2 {[%emt 0:00:22]} Ke6 {[%emt 0:01:03]} 66. Kd2 {[%emt 0:00:09]} Kd5 {[%emt 0:00:14]} 67. Ke2 {[%emt 0:00:20]} Nc4 {[%emt 0:00:20]} 68. Ra8 {[%emt 0:00:30]} Ke4 {[%emt 0:00:28]} 69. Re8+ {[%emt 0:00:12]} Ne5 {[%emt 0:00:25]} 70. Kd2 {[%emt 0:00:22]} Kd4 {[%emt 0:01:19]} 71. Rd8+ {[%emt 0:00:17]} Kc5 {[%emt 0:00:26]} 72. Kc2 {[%emt 0:00:30]} Re3 $17 {[%emt 0:00:54]} 73. Rc8+ {[%emt 0:00:22]} Kd4 {[%emt 0:00:24]} 74. Rd8+ {[%emt 0:00:18]} Ke4 {[%emt 0:00:36]} 75. Re8 {[%emt 0:00:17]} Kf3 {[%emt 0:00:33]} 76. Rf8+ {[%emt 0:00:22]} Ke2 {[%emt 0:00:09]} 77. Rh8 {[%emt 0:00:45]} Nf3 {[%emt 0:00:10]} 78. Rd8 {[%emt 0:00:58]} Ne1+ {[%emt 0:01:10]} 79. Kb2 {[%emt 0:00:29]} Nf3 {[%emt 0:00:23]} 80. Kc2 {[%emt 0:00:11]} Ne5 {[%emt 0:00:34]} 81. Rh8 {[%emt 0:00:16]} Kf2 {[%emt 0:00:46]} 82. Rh2+ {[%emt 0:00:24]} Kg3 {[%emt 0:00:11]} 83. Rh8 {[%emt 0:00:09]} Nc6 {[%emt 0:00:34]} 84. Rf8 {[%emt 0:00:21]} Nb4+ {[%emt 0:00:24]} 85. Kd2 {[%emt 0:00:20]} Rd3+ {[%emt 0:00:17]} 86. Ke2 {[%emt 0:00:08]} Ra3 {[%emt 0:00:17]} 87. Rg8+ {[%emt 0:00:18]} Kf4 {[%emt 0:00:15]} 1/2-1/2

[Event "DFMMLV 2019"]
[Site "Braunfels"]
[Date "2019.06.22"]
[Round "4.17"]
[White "Steinbacher, Claudia"]
[Black "Brandt, Carina"]
[Result "1-0"]
[ECO "E83"]
[WhiteElo "2080"]
[BlackElo "2085"]
[Annotator "NA"]
[PlyCount "77"]
[EventDate "2019.06.20"]
[EventType "team-tourn"]
[EventCountry "GER"]
[SourceTitle "playchess.com"]
[Source "ChessBase"]
[SourceQuality "1"]
[WhiteTeam "Sachsen"]
[BlackTeam "Hamburg"]
[TimeControl "40/5400+30:1800+30"]

1. d4 {[%emt 0:00:00]} Nf6 {[%emt 0:00:00]} 2. c4 {[%emt 0:00:00]} g6 {[%emt 0:00:00]} 3. Nc3 {[%emt 0:00:00]} Bg7 {[%emt 0:00:00]} 4. e4 {[%emt 0:00:00]} d6 {[%emt 0:00:00]} 5. f3 {[%emt 0:00:00]} O-O {[%emt 0:00:02]} 6. Be3 {[%emt 0:00:00]} Nc6 {[%emt 0:00:07]} 7. Nge2 {[%emt 0:03:04]} a6 {[%emt 0:01:35]} 8. Qd2 {[%emt 0:03:26]} e5 {[%emt 0:00:28]} 9. d5 {[%emt 0:00:16]} Na5 {[%emt 0:00:10]} 10. Ng3 {[%emt 0:01:12]} b5 {[%emt 0:00:30]} 11. c5 {[%emt 0:07:21]} dxc5 {[%emt 0:06:02]} 12. Bxc5 {[%emt 0:00:02]} Re8 {[%emt 0:00:09]} 13. b4 {[%emt 0:03:40]} Nb7 {[%emt 0:01:25]} 14. Be3 {[%emt 0:03:37]} Bf8 {[%emt 0:01:26]} 15. Qb2 {[%emt 0:01:15]} Nd6 {[%emt 0:03:24]} 16. Rb1 {[%emt 0:04:29]} c6 {[%emt 0:10:00]} 17. dxc6 {[%emt 0:00:51]} Be6 {[%emt 0:00:06]} 18. Rd1 {[%emt 0:06:48]} Qc7 {[%emt 0:01:38]} 19. Nd5 {[%emt 0:00:43]} Bxd5 {[%emt 0:00:05]} 20. exd5 {[%emt 0:00:08]} Rad8 {[%emt 0:01:04]} 21. Bg5 {[%emt 0:08:17]} Be7 {[%emt 0:01:38]} 22. h4 {[%emt 0:06:15]} Nf5 {[%emt 0:06:48]} 23. Nxf5 {[%emt 0:10:59]} gxf5 {[%emt 0:00:14]} 24. Bxf6 {[%emt 0:06:04]} Bxf6 {[%emt 0:00:08]} 25. Be2 {[%emt 0:01:55]} Rd6 {[%emt 0:03:31]} 26. Qb3 {[%emt 0:02:45]} e4 {[%emt 0:02:31]} 27. fxe4 {[%emt 0:00:41]} Rxe4 {[%emt 0:00:15]} 28. Kf1 {[%emt 0:00:55]} Qe7 {[%emt 0:01:50]} 29. Bf3 {[%emt 0:03:30]} Re3 {[%emt 0:01:34]} 30. Qc2 {[%emt 0:00:29]} Bxh4 {[%emt 0:04:30]} 31. Rxh4 {[%emt 0:00:37]} Qxh4 {[%emt 0:00:12]} 32. c7 {[%emt 0:00:11]} Re5 {[%emt 0:26:17]} 33. c8=Q+ {[%emt 0:01:42]} Kg7 {[%emt 0:00:01]} 34. Q8c3 {[%emt 0:04:12]} f6 {[%emt 0:02:54]} 35. Qc7+ {[%emt 0:00:31]} Kh6 {[%emt 0:00:01]} 36. Qd2+ {[%emt 0:02:23]} f4 {[%emt 0:00:12]} 37. Qxd6 {[%emt 0:01:13]} Qh1+ {[%emt 0:00:51]} 38. Kf2 {[%emt 0:00:03]} Qh4+ {[%emt 0:00:05]} 39. Kg1 {[%emt 0:00:08]} 1-0

[Event "DFMMLV 2019"]
[Site "Braunfels"]
[Date "2019.06.22"]
[Round "4.18"]
[White "Wulf, Constanze"]
[Black "Arnhold, Steffi"]
[Result "1-0"]
[ECO "B31"]
[WhiteElo "1711"]
[BlackElo "1996"]
[Annotator "NA"]
[PlyCount "113"]
[EventDate "2019.06.20"]
[EventType "team-tourn"]
[EventCountry "GER"]
[SourceTitle "playchess.com"]
[Source "ChessBase"]
[SourceQuality "1"]
[WhiteTeam "Hamburg"]
[BlackTeam "Sachsen"]
[TimeControl "40/5400+30:1800+30"]

1. e4 {[%emt 0:00:00]} c5 {[%emt 0:00:00]} 2. Nf3 {[%emt 0:00:00]} Nc6 {[%emt 0:00:00]} 3. Bb5 {[%emt 0:00:00]} g6 {[%emt 0:00:03]} 4. Bxc6 {[%emt 0:00:00]} dxc6 {[%emt 0:00:09]} 5. d3 {[%emt 0:00:19]} Bg7 {[%emt 0:00:41]} 6. O-O {[%emt 0:00:14]} Nf6 {[%emt 0:02:04]} 7. Nc3 {[%emt 0:00:21]} O-O {[%emt 0:00:29]} 8. Be3 {[%emt 0:00:39]} b6 {[%emt 0:00:25]} 9. Qd2 {[%emt 0:00:33]} Bb7 {[%emt 0:10:35]} 10. a3 {[%emt 0:17:04]} Qc7 {[%emt 0:13:31]} 11. Bf4 {[%emt 0:07:28]} Qc8 {[%emt 0:00:32]} 12. Bh6 {[%emt 0:00:42]} Rd8 {[%emt 0:03:50]} 13. Bxg7 {[%emt 0:00:22]} Kxg7 {[%emt 0:00:06]} 14. Qg5 {[%emt 0:05:17]} Qe6 {[%emt 0:09:47]} 15. Qh4 {[%emt 0:06:04]} h6 {[%emt 0:05:42]} 16. Rad1 {[%emt 0:20:18]} g5 {[%emt 0:05:56]} 17. Qg3 {[%emt 0:01:40]} Nh5 {[%emt 0:08:35]} 18. Qe5+ {[%emt 0:08:40]} Qxe5 {[%emt 0:00:09]} 19. Nxe5 {[%emt 0:00:03]} f6 {[%emt 0:04:58]} 20. Ng4 {[%emt 0:00:52]} Rd7 {[%emt 0:02:30]} 21. g3 {[%emt 0:06:10]} Kh7 {[%emt 0:13:47]} 22. Ne3 {[%emt 0:00:56]} Ng7 {[%emt 0:01:29]} 23. f4 {[%emt 0:04:13]} Ne6 {[%emt 0:02:38]} 24. fxg5 {[%emt 0:01:03]} hxg5 {[%emt 0:04:16]} 25. Rf2 {[%emt 0:02:33]} Nd4 {[%emt 0:04:10]} 26. Rdf1 {[%emt 0:00:15]} Kg6 {[%emt 0:01:32]} 27. e5 {[%emt 0:00:59]} fxe5 {[%emt 0:01:29]} 28. Ng4 {[%emt 0:00:15]} Rc7 {[%emt 0:01:12]} 29. Nxe5+ {[%emt 0:00:08]} Kh6 {[%emt 0:00:17]} 30. Ne4 {[%emt 0:01:30]} Rg8 {[%emt 0:00:29]} 31. g4 {[%emt 0:10:59]} Bc8 {[%emt 0:01:31]} 32. Rf8 {[%emt 0:02:34]} Rxf8 {[%emt 0:00:23]} 33. Rxf8 {[%emt 0:00:04]} Be6 {[%emt 0:00:58]} 34. c3 {[%emt 0:00:28]} Ne2+ {[%emt 0:00:09]} 35. Kf2 {[%emt 0:00:27]} Nf4 {[%emt 0:00:10]} 36. Ke3 {[%emt 0:01:25]} Rc8 {[%emt 0:00:36]} 37. Rxc8 {[%emt 0:00:21]} Bxc8 {[%emt 0:00:05]} 38. Nf7+ {[%emt 0:02:09]} Kg6 {[%emt 0:00:27]} 39. Nfxg5 {[%emt 0:00:25]} e5 {[%emt 0:00:44]} 40. h3 {[%emt 0:01:34]} Ba6 {[%emt 0:01:00]} 41. c4 {[%emt 0:04:09]} Bc8 {[%emt 0:01:10]} 42. Nf3 {[%emt 0:07:23]} Nxh3 {[%emt 0:00:33]} 43. Nxe5+ {[%emt 0:00:13]} Kh6 {[%emt 0:02:34]} 44. Kf3 {[%emt 0:02:04]} Ng5+ {[%emt 0:02:53]} 45. Kf4 {[%emt 0:01:18]} Ne6+ {[%emt 0:00:41]} 46. Kf5 {[%emt 0:00:41]} Kg7 {[%emt 0:00:43]} 47. Nd6 {[%emt 0:00:10]} Nd4+ {[%emt 0:00:10]} 48. Ke4 {[%emt 0:00:14]} Be6 {[%emt 0:00:59]} 49. Kf4 {[%emt 0:05:13]} Ne2+ {[%emt 0:02:49]} 50. Kg5 {[%emt 0:00:38]} Nd4 {[%emt 0:00:47]} 51. Nf5+ {[%emt 0:01:58]} Bxf5 {[%emt 0:00:39]} 52. gxf5 {[%emt 0:00:02]} Kf8 {[%emt 0:02:21]} 53. Kg6 {[%emt 0:00:32]} Ne2 {[%emt 0:00:57]} 54. f6 {[%emt 0:00:26]} Nf4+ {[%emt 0:00:29]} 55. Kf5 {[%emt 0:00:36]} Nh5 {[%emt 0:01:25]} 56. Ke6 {[%emt 0:00:32]} Nf4+ {[%emt 0:00:29]} 57. Kd6 {[%emt 0:00:40]} 1-0

[Event "DFMMLV 2019"]
[Site "Braunfels"]
[Date "2019.06.22"]
[Round "4.19"]
[White "Daemering, Katrin"]
[Black "Tobianski, Karina"]
[Result "1-0"]
[ECO "A04"]
[WhiteElo "2003"]
[BlackElo "1680"]
[Annotator "NA"]
[PlyCount "99"]
[EventDate "2019.06.20"]
[EventType "team-tourn"]
[EventCountry "GER"]
[SourceTitle "playchess.com"]
[Source "ChessBase"]
[SourceQuality "1"]
[WhiteTeam "Sachsen"]
[BlackTeam "Hamburg"]
[TimeControl "40/5400+30:1800+30"]

1. Nf3 {[%emt 0:00:00]} d6 {[%emt 0:00:00]} 2. d4 {[%emt 0:00:00]} Nf6 {[%emt 0:01:05]} 3. g3 {[%emt 0:00:33]} g6 {[%emt 0:01:13]} 4. Bg2 {[%emt 0:00:16]} Bg7 {[%emt 0:00:50]} 5. O-O {[%emt 0:02:13]} O-O {[%emt 0:00:21]} 6. c3 {[%emt 0:01:18]} Nbd7 {[%emt 0:02:58]} 7. Nbd2 {[%emt 0:04:45]} e5 {[%emt 0:04:23]} 8. e4 {[%emt 0:03:33]} Re8 {[%emt 0:03:55]} 9. Qc2 {[%emt 0:08:45]} Nf8 {[%emt 0:07:57]} 10. h3 {[%emt 0:07:16]} Nh5 {[%emt 0:11:28]} 11. Rd1 {[%emt 0:21:13]} Qe7 {[%emt 0:04:18]} 12. Nf1 {[%emt 0:06:27]} Kh8 {[%emt 0:15:48]} 13. Bg5 {[%emt 0:05:23]} f6 {[%emt 0:02:05]} 14. Be3 {[%emt 0:00:23]} f5 {[%emt 0:03:12]} 15. dxe5 {[%emt 0:09:31]} dxe5 {[%emt 0:02:04]} 16. exf5 {[%emt 0:05:47]} gxf5 {[%emt 0:01:14]} 17. Bg5 {[%emt 0:05:09]} Qf7 {[%emt 0:00:56]} 18. Qa4 {[%emt 0:10:06]} Ne6 {[%emt 0:08:27]} 19. Bh4 {[%emt 0:02:49]} e4 {[%emt 0:06:07]} 20. Ne1 {[%emt 0:00:36]} c6 {[%emt 0:01:25]} 21. Qb3 {[%emt 0:00:26]} Qg6 {[%emt 0:01:33]} 22. Qc4 {[%emt 0:02:24]} Ng5 {[%emt 0:01:59]} 23. Bxg5 {[%emt 0:00:38]} Qxg5 {[%emt 0:00:06]} 24. Rd6 {[%emt 0:00:44]} Qe7 {[%emt 0:11:37]} 25. Rad1 {[%emt 0:00:13]} Be6 {[%emt 0:00:12]} 26. Qe2 {[%emt 0:00:13]} Nf6 {[%emt 0:00:20]} 27. c4 {[%emt 0:00:42]} Rad8 {[%emt 0:02:27]} 28. Rxd8 {[%emt 0:00:12]} Rxd8 {[%emt 0:00:02]} 29. Ne3 {[%emt 0:00:50]} Rd7 {[%emt 0:01:09]} 30. Rxd7 {[%emt 0:00:44]} Qxd7 {[%emt 0:00:05]} 31. Kh2 {[%emt 0:00:39]} Qd4 {[%emt 0:00:54]} 32. b3 {[%emt 0:00:16]} Nd7 {[%emt 0:00:44]} 33. N3c2 {[%emt 0:00:24]} Qd6 {[%emt 0:00:38]} 34. Qh5 {[%emt 0:00:44]} Nf6 {[%emt 0:00:56]} 35. Qe2 {[%emt 0:00:01]} Bf7 {[%emt 0:00:46]} 36. Qe3 {[%emt 0:00:15]} Bh6 {[%emt 0:00:28]} 37. Qxa7 {[%emt 0:00:38]} Qd7 {[%emt 0:01:27]} 38. Qb8+ {[%emt 0:00:12]} Kg7 {[%emt 0:00:28]} 39. Qe5 {[%emt 0:00:09]} Bg5 {[%emt 0:01:14]} 40. Bxe4 {[%emt 0:01:43]} fxe4 {[%emt 0:02:06]} 41. Qxg5+ {[%emt 0:30:13]} Bg6 {[%emt 0:30:28]} 42. Ne3 {[%emt 0:00:00]} Kf7 {[%emt 0:00:00]} 43. Qf4 {[%emt 0:00:00]} Kg7 {[%emt 0:00:00]} 44. N1g2 {[%emt 0:00:00]} b5 {[%emt 0:00:00]} 45. Nh4 {[%emt 0:00:00]} bxc4 {[%emt 0:00:00]} 46. Nxc4 {[%emt 0:00:00]} Qa7 {[%emt 0:00:00]} 47. Nxg6 {[%emt 0:00:00]} hxg6 {[%emt 0:00:00]} 48. a4 {[%emt 0:00:00]} Nd5 {[%emt 0:00:00]} 49. Qe5+ {[%emt 0:00:00]} Kh7 {[%emt 0:00:00]} 50. Kg2 {[%emt 0:00:00]} 1-0

[Event "DFMMLV 2019"]
[Site "Braunfels"]
[Date "2019.06.22"]
[Round "4.20"]
[White "Neumann, Ramona"]
[Black "Doll, Rebecca"]
[Result "1-0"]
[ECO "C41"]
[WhiteElo "1709"]
[BlackElo "1678"]
[Annotator "NA"]
[PlyCount "73"]
[EventDate "2019.06.20"]
[EventType "team-tourn"]
[EventCountry "GER"]
[SourceTitle "playchess.com"]
[Source "ChessBase"]
[SourceQuality "1"]
[WhiteTeam "Hamburg"]
[BlackTeam "Baden"]
[TimeControl "40/5400+30:1800+30"]

1. e4 {[%emt 0:00:00]} e5 {[%emt 0:00:00]} 2. Nf3 {[%emt 0:00:00]} d6 {[%emt 0:00:20]} 3. Nc3 {[%emt 0:06:14]} g6 {[%emt 0:00:20]} 4. d3 {[%emt 0:01:19]} Bg7 {[%emt 0:00:06]} 5. Be3 {[%emt 0:00:57]} Ne7 {[%emt 0:00:17]} 6. Qd2 {[%emt 0:01:29]} h6 {[%emt 0:00:37]} 7. h3 {[%emt 0:12:09]} f5 {[%emt 0:01:37]} 8. exf5 {[%emt 0:01:48]} Nxf5 {[%emt 0:01:04]} 9. Ne2 {[%emt 0:10:27]} c5 {[%emt 0:03:56]} 10. g4 {[%emt 0:07:04]} Nxe3 {[%emt 0:01:24]} 11. Qxe3 {[%emt 0:01:24]} Qe7 {[%emt 0:04:50]} 12. Bg2 {[%emt 0:02:31]} Be6 {[%emt 0:02:30]} 13. Ng3 {[%emt 0:01:57]} Nc6 {[%emt 0:01:06]} 14. c3 {[%emt 0:08:00]} O-O {[%emt 0:02:34]} 15. O-O {[%emt 0:01:02]} Rae8 {[%emt 0:06:46]} 16. Nd2 {[%emt 0:03:52]} Bd7 {[%emt 0:12:31]} 17. Rae1 {[%emt 0:03:17]} Kh8 {[%emt 0:06:46]} 18. Ne2 {[%emt 0:06:20]} b6 {[%emt 0:07:11]} 19. Qg3 {[%emt 0:03:33]} Qe6 {[%emt 0:04:37]} 20. f4 {[%emt 0:03:23]} Qxa2 {[%emt 0:02:01]} 21. Nc4 {[%emt 0:02:43]} Rf6 {[%emt 0:12:05]} 22. fxe5 {[%emt 0:04:22]} Rxf1+ {[%emt 0:01:39]} 23. Rxf1 {[%emt 0:00:21]} Bxe5 {[%emt 0:00:27]} 24. Qh4 {[%emt 0:01:45]} Kg7 {[%emt 0:06:20]} 25. Bxc6 {[%emt 0:04:38]} Bh2+ {[%emt 0:02:36]} 26. Kxh2 {[%emt 0:00:56]} Rxe2+ {[%emt 0:00:52]} 27. Bg2 {[%emt 0:00:20]} g5 {[%emt 0:00:57]} 28. Qg3 {[%emt 0:00:22]} Qa4 {[%emt 0:01:14]} 29. Qxd6 {[%emt 0:02:19]} Be8 {[%emt 0:03:04]} 30. Qf6+ {[%emt 0:02:20]} Kg8 {[%emt 0:00:55]} 31. Qxh6 {[%emt 0:01:14]} Bf7 {[%emt 0:04:01]} 32. Qxg5+ {[%emt 0:00:16]} Kf8 {[%emt 0:00:15]} 33. Qf5 {[%emt 0:01:52]} Qe8 {[%emt 0:02:26]} 34. Kh1 {[%emt 0:01:54]} Re1 {[%emt 0:00:47]} 35. Rxe1 {[%emt 0:00:58]} Qxe1+ {[%emt 0:00:17]} 36. Qf1 {[%emt 0:00:10]} Qg3 {[%emt 0:00:35]} 37. Bd5 {[%emt 0:00:42]} 1-0